lending/lending_fUSD_20250425
["ID","MTS","AMOUNT","RATE_DAILY","PERIOD"]
[358952135,1745583095787,-500.0,0.00036438,2]
[358952136,1745583095797,-901.52,0.00036438,2]
[358952137,1745583095806,-347.9906782,0.00036438,2]
[358952138,1745583095819,-1077.87,0.00036438,2]
[358952139,1745583095829,-500.0,0.00036438,2]
[358952140,1745583095839,-500.0,0.00036438,2]
[358952141,1745583095848,-1008.41,0.00036438,2]
[358952142,1745583095858,-895.82,0.00036438,2]
[358952143,1745583095868,-1338.54,0.00036438,2]
[358952144,1745583095877,-1139.46,0.00036438,2]
[358952145,1745583095886,-903.82,0.00036438,2]
[358952146,1745583095896,-560.99,0.00036438,2]
[358952147,1745583095906,-823.66,0.00036438,2]
[358952148,1745583095916,-781.45,0.00036438,2]
[358952149,1745583095926,-500.0,0.00036438,2]
[358952150,1745583095935,-500.0,0.00036438,2]
[358952151,1745583095945,-657.34,0.00036438,2]
[358952152,1745583095955,-500.0,0.00036438,2]
[358952153,1745583095965,-500.0,0.00036438,2]
[358952154,1745583095975,-500.0,0.00036438,2]
[358952155,1745583095985,-644.62,0.00036438,2]
[358952156,1745583095995,-505.96,0.00036438,2]
[358952157,1745583096005,-595.07,0.00036438,2]
[358952158,1745583096015,-500.0,0.00036438,2]
[358952159,1745583096025,-500.0,0.00036438,2]
[358952160,1745583096035,-500.0,0.00036438,2]
[358952161,1745583096045,-500.0,0.00036438,2]
[358952162,1745583096055,-501.78,0.00036438,2]
[358952163,1745583096067,-500.0,0.00036438,2]
[358952164,1745583096076,-500.0,0.00036438,2]
[358952165,1745583096086,-641.42,0.00036438,2]
[358952166,1745583096096,-500.0,0.00036438,2]
[358952167,1745583096105,-500.0,0.00036438,2]
[358952168,1745583096115,-224.50459263,0.00036438,2]
[358952169,1745583096125,-500.0,0.00036438,2]
[358952170,1745583096136,-500.0,0.00036438,2]
[358952171,1745583096145,-852.47,0.00036438,2]
[358952172,1745583096155,-500.0,0.00036438,2]
[358952173,1745583096164,-444.39706586,0.00036438,2]
[358952174,1745583096174,-500.0,0.00036438,2]
[358952175,1745583096184,-527.98349465,0.00036438,2]
[358952176,1745583096193,-821.73,0.00036438,2]
[358952177,1745583096203,-875.42,0.00036438,2]
[358952178,1745583096213,-500.0,0.00036438,2]
[358952179,1745583096223,-500.0,0.00036438,2]
[358952180,1745583096232,-1036.33,0.00036438,2]
[358952181,1745583096242,-513.44,0.00036438,2]
[358952182,1745583096251,-500.0,0.00036438,2]
[358952183,1745583096261,-841.68,0.00036438,2]
[358952184,1745583096270,-500.0,0.00036438,2]
[358952185,1745583096280,-500.0,0.00036438,2]
[358952186,1745583096290,-612.26,0.00036438,2]
[358952187,1745583096299,-500.0,0.00036438,2]
[358952188,1745583096310,-500.0,0.00036438,2]
[358952189,1745583096322,-500.84,0.00036438,2]
[358952190,1745583096331,-609.02290865,0.00036438,2]
[358952191,1745583096341,-520.1,0.00036438,2]
[358952192,1745583096350,-500.0,0.00036438,2]
[358952193,1745583096360,-500.0,0.00036438,2]
[358952194,1745583096369,-500.0,0.00036438,2]
[358952195,1745583096379,-500.0,0.00036438,2]
[358952196,1745583096388,-500.0,0.00036438,2]
[358952197,1745583096397,-975.25,0.00036438,2]
[358952198,1745583096407,-500.0,0.00036438,2]
[358952199,1745583096418,-2765.1,0.00036438,2]
[358952200,1745583096428,-502.18,0.00036438,2]
[358952201,1745583096437,-500.0,0.00036438,2]
[358952202,1745583096447,-500.0,0.00036438,2]
[358952203,1745583096662,-1243.64,0.00036438,2]
[358952204,1745583096673,-500.0,0.00036438,2]
[358952205,1745583096683,-1752.11,0.00036438,2]
[358952206,1745583096693,-500.0,0.00036438,2]
[358952207,1745583096702,-500.0,0.00036438,2]
[358952208,1745583096712,-500.0,0.00036438,2]
[358952209,1745583096722,-500.0,0.00036438,2]
[358952210,1745583096732,-500.0,0.00036438,2]
[358952211,1745583096743,-500.0,0.00036438,2]
[358952212,1745583096753,-500.0,0.00036438,2]
[358952213,1745583096762,-1549.0,0.00036438,2]
[358952214,1745583096772,-500.0,0.00036438,2]
[358952215,1745583096782,-500.0,0.00036438,2]
[358952216,1745583096792,-500.0,0.00036438,2]
[358952217,1745583096801,-500.0,0.00036438,2]
[358952218,1745583096814,-343.80884306,0.00036438,2]
[358952219,1745583096824,-500.0,0.00036438,2]
[358952220,1745583096833,-500.0,0.00036438,2]
[358952221,1745583096843,-653.33,0.00036438,2]
[358952222,1745583096852,-500.0,0.00036438,2]
[358952223,1745583096862,-500.0,0.00036438,2]
[358952224,1745583096872,-155.55675441,0.00036438,30]
[358952225,1745583096881,-500.0,0.00036438,2]
[358952226,1745583096891,-500.0,0.00036438,2]
[358952227,1745583096900,-553.98566313,0.00036438,2]
[358952228,1745583096910,-1490.15,0.00036438,2]
[358952229,1745583096920,-500.0,0.00036438,2]
[358952230,1745583096929,-500.0,0.00036438,2]
[358952231,1745583096940,-1281.04,0.00036438,2]
[358952232,1745583096949,-500.0,0.00036438,2]
[358952233,1745583096959,-664.11,0.00036438,2]
[358952234,1745583096969,-500.0,0.00036438,2]
[358952235,1745583096979,-557.66,0.00036438,2]
[358952236,1745583096989,-500.0,0.00036438,2]
[358952237,1745583096999,-544.36,0.00036438,2]
[358952238,1745583097009,-500.0,0.00036438,2]
[358952239,1745583097018,-803.76,0.00036438,2]
[358952240,1745583097028,-500.0,0.00036438,2]
[358952241,1745583097038,-500.0,0.00036438,2]
[358952242,1745583097047,-661.96,0.00036438,2]
[358952243,1745583097056,-672.15,0.00036438,2]
[358952244,1745583097068,-533.3,0.00036438,2]
[358952245,1745583097077,-731.33,0.00036438,2]
[358952246,1745583097090,-500.0,0.00036438,2]
[358952247,1745583097099,-593.04,0.00036438,2]
[358952248,1745583097109,-500.0,0.00036438,2]
[358952249,1745583097119,-500.0,0.00036438,2]
[358952250,1745583097128,-500.0,0.00036438,2]
[358952251,1745583097137,-500.0,0.00036438,2]
[358952252,1745583097147,-500.0,0.00036438,2]
[358952253,1745583097156,-500.0,0.00036438,2]
[358952254,1745583097166,-2909.22,0.00036438,2]
[358952255,1745583097176,-500.0,0.00036438,2]
[358952256,1745583097186,-500.0,0.00036438,2]
[358952257,1745583097196,-1883.8,0.00036438,2]
[358952258,1745583097206,-500.0,0.00036438,2]
[358952259,1745583097216,-500.0,0.00036438,2]
[358952260,1745583097225,-500.0,0.00036438,2]
[358952261,1745583097235,-715.33,0.00036438,2]
[358952262,1745583097245,-500.0,0.00036438,2]
[358952263,1745583097254,-500.0,0.00036438,2]
[358952264,1745583097263,-500.0,0.00036438,2]
[358952265,1745583097272,-500.0,0.00036438,2]
[358952266,1745583097282,-1130.46,0.00036438,2]
[358952267,1745583097292,-560.92137211,0.00036438,2]
[358952268,1745583097301,-500.0,0.00036438,2]
[358952269,1745583097312,-686.42,0.00036438,2]
[358952270,1745583097323,-500.0,0.00036438,2]
[358952271,1745583097333,-500.0,0.00036438,2]
[358952272,1745583097343,-500.0,0.00036438,2]
[358952273,1745583097352,-500.0,0.00036438,2]
[358952274,1745583097361,-500.0,0.00036438,2]
[358952275,1745583097371,-1580.56,0.00036438,2]
[358952276,1745583097381,-500.0,0.00036438,2]
[358952277,1745583097391,-500.0,0.00036438,2]
[358952278,1745583097401,-500.0,0.00036438,2]
[358952279,1745583097413,-1178.77,0.00036438,2]
[358952280,1745583097422,-500.0,0.00036438,2]
[358952281,1745583097432,-987.3,0.00036438,2]
[358952282,1745583097442,-500.0,0.00036438,2]
[358952283,1745583097452,-500.0,0.00036438,2]
[358952284,1745583097461,-560.86,0.00036438,2]
[358952285,1745583097471,-539.06704046,0.00036438,2]
[358952286,1745583097480,-500.0,0.00036438,2]
[358952287,1745583097492,-500.0,0.00036438,2]
[358952288,1745583097502,-500.0,0.00036438,2]
[358952289,1745583097512,-500.0,0.00036438,2]
[358952290,1745583097522,-500.0,0.00036438,2]
[358952291,1745583097531,-500.0,0.00036438,2]
[358952292,1745583097541,-956.78,0.00036438,2]
[358952293,1745583097551,-500.0,0.00036438,2]
[358952294,1745583097562,-636.67,0.00036438,2]
[358952295,1745583097573,-500.0,0.00036438,2]
[358952296,1745583097583,-966.15,0.00036438,2]
[358952297,1745583097592,-500.0,0.00036438,2]
[358952298,1745583097602,-500.0,0.00036438,2]
[358952299,1745583097612,-500.0,0.00036438,2]
[358952300,1745583097622,-500.0,0.00036438,2]
[358952301,1745583097632,-1012.74,0.00036438,2]
[358952302,1745583097642,-818.36,0.00036438,2]
[358952303,1745583097652,-500.0,0.00036438,2]
[358952304,1745583097662,-500.0,0.00036438,2]
[358952305,1745583097672,-500.0,0.00036438,2]
[358952306,1745583097682,-1055.72,0.00036438,2]
[358952307,1745583097692,-971.58,0.00036438,2]
[358952308,1745583097702,-1159.23,0.00036438,2]
[358952309,1745583097712,-1090.24,0.00036438,2]
[358952310,1745583097721,-500.0,0.00036438,2]
[358952311,1745583097731,-1035.57,0.00036438,2]
[358952312,1745583097741,-500.0,0.00036438,2]
[358952313,1745583097751,-500.0,0.00036438,2]
[358952314,1745583097761,-597.18,0.00036438,2]
[358952315,1745583097771,-500.0,0.00036438,2]
[358952316,1745583097782,-1160.16,0.00036438,2]
[358952317,1745583097795,-500.0,0.00036438,2]
[358952318,1745583097805,-1806.28,0.00036438,2]
[358952319,1745583097816,-355.27438782,0.00036438,2]
[358952320,1745583097826,-956.25,0.00036438,2]
[358952321,1745583097836,-1090.74,0.00036438,2]
[358952322,1745583097847,-500.0,0.00036438,2]
[358952323,1745583097856,-534.98,0.00036438,2]
[358952324,1745583097866,-300.0,0.00036438,2]
[358952325,1745583097878,-727.52,0.00036438,2]
[358952326,1745583097889,-500.0,0.00036438,2]
[358952327,1745583097900,-500.0,0.00036438,2]
[358952328,1745583097910,-880.44,0.00036438,2]
[358952329,1745583097921,-796.66,0.00036438,2]
[358952330,1745583097932,-554.44,0.00036438,2]
[358952331,1745583097941,-1021.41,0.00036438,2]
[358952332,1745583097951,-500.0,0.00036438,2]
[358952333,1745583097960,-500.0,0.00036438,2]
[358952334,1745583097970,-500.0,0.00036438,2]
[358952335,1745583097980,-500.0,0.00036438,2]
[358952336,1745583097990,-868.82,0.00036438,2]
[358952337,1745583097999,-500.0,0.00036438,2]
[358952338,1745583098010,-500.0,0.00036438,2]
[358952339,1745583098020,-1039.89,0.00036438,2]
[358952340,1745583098030,-544.81912869,0.00036438,2]
[358952341,1745583098045,-1127.53,0.00036438,2]
[358952342,1745583098055,-692.33,0.00036438,2]
[358952343,1745583098065,-500.0,0.00036438,2]
[358952344,1745583098075,-573.95,0.00036438,2]
[358952345,1745583098085,-500.0,0.00036438,2]
[358952346,1745583098095,-500.0,0.00036438,2]
[358952347,1745583098104,-889.2,0.00036438,2]
[358952348,1745583098114,-1131.78,0.00036438,2]
[358952349,1745583098123,-604.33,0.00036438,2]
[358952350,1745583098133,-843.53,0.00036438,2]
[358952351,1745583098142,-500.0,0.00036438,2]
[358952352,1745583098152,-247.43427896,0.00036438,2]
[358952353,1745583098162,-500.0,0.00036438,2]
[358952354,1745583098172,-500.0,0.00036438,2]
[358952355,1745583098182,-500.0,0.00036438,2]
[358952356,1745583098191,-500.0,0.00036438,2]
[358952357,1745583098203,-1072.46,0.00036438,2]
[358952358,1745583098213,-500.0,0.00036438,2]
[358952359,1745583098223,-500.0,0.00036438,2]
[358952360,1745583098233,-500.0,0.00036438,2]
[358952361,1745583098242,-500.0,0.00036438,2]
[358952362,1745583098252,-606.77,0.00036438,2]
[358952363,1745583098261,-500.0,0.00036438,2]
[358952364,1745583098271,-1108.5,0.00036438,2]
[358952365,1745583098282,-500.0,0.00036438,2]
[358952366,1745583098292,-672.72,0.00036438,2]
[358952367,1745583098302,-1494.34,0.00036438,2]
[358952368,1745583098313,-535.60154908,0.00036438,2]
[358952369,1745583098323,-500.0,0.00036438,2]
[358952370,1745583098333,-359.04658068,0.00036438,2]
[358952371,1745583098342,-620.72877691,0.00036438,2]
[358952372,1745583098352,-500.0,0.00036438,2]
[358952373,1745583098362,-500.0,0.00036438,2]
[358952374,1745583098372,-500.0,0.00036438,2]
[358952375,1745583098381,-825.41,0.00036438,2]
[358952376,1745583098391,-549.05,0.00036438,2]
[358952377,1745583098400,-500.0,0.00036438,2]
[358952378,1745583098411,-500.0,0.00036438,2]
[358952379,1745583098422,-500.0,0.00036438,2]
[358952380,1745583098432,-500.0,0.00036438,2]
[358952381,1745583098442,-1026.97,0.00036438,2]
[358952382,1745583098453,-500.0,0.00036438,2]
[358952383,1745583098463,-500.0,0.00036438,2]
[358952384,1745583098473,-722.24,0.00036438,2]
[358952385,1745583098482,-500.0,0.00036438,2]
[358952386,1745583098493,-1168.97,0.00036438,2]
[358952387,1745583098503,-718.66,0.00036438,2]
[358952388,1745583098513,-4888.31,0.00036438,2]
[358952389,1745583098522,-500.0,0.00036438,2]
[358952390,1745583098532,-500.0,0.00036438,2]
[358952391,1745583098542,-500.0,0.00036438,2]
[358952392,1745583098551,-792.74,0.00036438,2]
[358952393,1745583098562,-500.0,0.00036438,2]
[358952394,1745583098571,-964.75,0.00036438,2]
[358952395,1745583098582,-1454.9,0.00036438,2]
[358952396,1745583098592,-954.8,0.00036438,2]
[358952397,1745583098602,-500.0,0.00036438,2]
[358952398,1745583098612,-500.0,0.00036438,2]
[358952399,1745583098621,-500.0,0.00036438,2]
[358952400,1745583098631,-500.0,0.00036438,2]
[358952401,1745583098641,-543.25799035,0.00036438,2]
[358952402,1745583098651,-500.0,0.00036438,2]
[358952403,1745583098660,-500.0,0.00036438,2]
[358952404,1745583098670,-1681.84,0.00036438,2]
[358952405,1745583098681,-971.1,0.00036438,2]
[358952406,1745583098691,-567.72,0.00036438,2]
[358952407,1745583098701,-530.70275393,0.00036438,2]
[358952408,1745583098710,-1185.38,0.00036438,2]
[358952409,1745583098720,-506.03,0.00036438,2]
[358952410,1745583098732,-500.0,0.00036438,2]
[358952411,1745583098742,-908.28,0.00036438,2]
[358952412,1745583098752,-500.0,0.00036438,2]
[358952413,1745583098761,-500.0,0.00036438,2]
[358952414,1745583098770,-2009.27,0.00036438,2]
[358952415,1745583098780,-595.07455108,0.00036438,2]
[358952416,1745583098790,-500.0,0.00036438,2]
[358952417,1745583098800,-588.13320665,0.00036438,2]
[358952418,1745583098810,-680.11,0.00036438,2]
[358952419,1745583098821,-796.84,0.00036438,2]
[358952420,1745583098831,-500.0,0.00036438,2]
[358952421,1745583098840,-511.9,0.00036438,2]
[358952422,1745583098849,-608.18,0.00036438,2]
[358952423,1745583098859,-500.0,0.00036438,2]
[358952424,1745583098868,-500.0,0.00036438,2]
[358952425,1745583098877,-500.0,0.00036438,2]
[358952426,1745583098887,-500.0,0.00036438,2]
[358952427,1745583098896,-684.54,0.00036438,2]
[358952428,1745583098906,-1211.3,0.00036438,2]
[358952429,1745583098915,-764.13,0.00036438,2]
[358952430,1745583098925,-500.0,0.00036438,2]
[358952431,1745583098934,-500.0,0.00036438,2]
[358952432,1745583098944,-500.0,0.00036438,2]
[358952433,1745583098953,-894.51,0.00036438,2]
[358952434,1745583098963,-782.79,0.00036438,2]
[358952435,1745583098974,-500.0,0.00036438,2]
[358952436,1745583098985,-500.0,0.00036438,2]
[358952437,1745583098996,-500.0,0.00036438,2]
[358952438,1745583099006,-500.0,0.00036438,2]
[358952439,1745583099017,-500.0,0.00036438,2]
[358952440,1745583099028,-500.0,0.00036438,2]
[358952441,1745583099039,-500.0,0.00036438,2]
[358952442,1745583099048,-500.0,0.00036438,2]
[358952443,1745583099057,-723.84,0.00036438,2]
[358952444,1745583099067,-500.0,0.00036438,2]
[358952445,1745583099077,-677.05,0.00036438,2]
[358952446,1745583099086,-500.0,0.00036438,2]
[358952447,1745583099096,-444.04045586,0.00036438,2]
[358952448,1745583099106,-500.0,0.00036438,2]
[358952449,1745583099115,-894.53,0.00036438,2]
[358952450,1745583099126,-500.0,0.00036438,2]
[358952451,1745583099135,-500.0,0.00036438,2]
[358952452,1745583099145,-6461.02,0.00036438,2]
[358952453,1745583099154,-500.0,0.00036438,2]
[358952454,1745583099165,-818.01,0.00036438,2]
[358952455,1745583099174,-500.0,0.00036438,2]
[358952456,1745583099184,-896.22,0.00036438,2]
[358952457,1745583099194,-500.0,0.00036438,2]
[358952458,1745583099203,-500.0,0.00036438,2]
[358952459,1745583099213,-1031.46,0.00036438,2]
[358952460,1745583099223,-988.18,0.00036438,2]
[358952461,1745583099232,-500.0,0.00036438,2]
[358952462,1745583099241,-705.94,0.00036438,2]
[358952463,1745583099250,-1118.34,0.00036438,2]
[358952464,1745583099260,-500.0,0.00036438,2]
[358952465,1745583099269,-500.0,0.00036438,2]
[358952466,1745583099474,-905.82,0.00036438,2]
[358952467,1745583099484,-1000.0,0.00036438,2]
[358952468,1745583099495,-500.0,0.00036438,2]
[358952469,1745583099506,-500.0,0.00036438,2]
[358952470,1745583099517,-576.4947197,0.00036438,2]
[358952471,1745583099527,-700.32,0.00036438,2]
[358952472,1745583099537,-1000.0,0.00036438,2]
[358952473,1745583099547,-500.0,0.00036438,2]
[358952474,1745583099556,-500.0,0.00036438,2]
[358952475,1745583099568,-1178.97,0.00036438,2]
[358952476,1745583099579,-575.49467978,0.00036438,2]
[358952477,1745583099590,-500.0,0.00036438,2]
[358952478,1745583099600,-500.0,0.00036438,2]
[358952479,1745583099611,-500.0,0.00036438,2]
[358952480,1745583099622,-566.86,0.00036438,2]
[358952481,1745583099632,-500.0,0.00036438,2]
[358952482,1745583099641,-500.0,0.00036438,2]
[358952483,1745583099651,-234841.91,0.00036438,2]
[358952484,1745583099661,-632.14761317,0.00036438,2]
[358952485,1745583099672,-690.7,0.00036438,2]
[358952486,1745583099688,-500.0,0.00036438,2]
[358952487,1745583099701,-5542.21,0.00036438,2]
[358952488,1745583099711,-1088.74,0.00036438,2]
[358952489,1745583099721,-500.0,0.00036438,2]
[358952490,1745583099732,-500.0,0.00036438,2]
[358952491,1745583099743,-541.28,0.00036438,2]
[358952492,1745583099753,-500.0,0.00036438,2]
[358952493,1745583099763,-500.0,0.00036438,2]
[358952494,1745583099773,-500.0,0.00036438,2]
[358952495,1745583099783,-500.0,0.00036438,2]
[358952496,1745583099794,-893.29,0.00036438,2]
[358952497,1745583099804,-500.0,0.00036438,2]
[358952498,1745583099816,-924.91,0.00036438,2]
[358952499,1745583099827,-526.73970957,0.00036438,2]
[358952500,1745583099838,-764.82,0.00036438,2]
[358952501,1745583099849,-500.0,0.00036438,2]
[358952502,1745583099859,-726.32,0.00036438,2]
[358952503,1745583099869,-500.0,0.00036438,2]
[358952504,1745583099880,-500.0,0.00036438,2]
[358952505,1745583099891,-500.0,0.00036438,2]
[358952506,1745583099903,-546.69,0.00036438,2]
[358952507,1745583099914,-668.25,0.00036438,2]
[358952508,1745583099925,-500.0,0.00036438,2]
[358952509,1745583099936,-500.0,0.00036438,2]
[358952510,1745583099947,-881.51,0.00036438,2]
[358952511,1745583099957,-500.0,0.00036438,2]
[358952512,1745583099969,-500.0,0.00036438,2]
[358952513,1745583099980,-1158.45,0.00036438,2]
[358952514,1745583099991,-541.09,0.00036438,2]
[358952515,1745583100002,-546.43262398,0.00036438,2]
[358952516,1745583100014,-609.87,0.00036438,2]
[358952517,1745583100026,-500.0,0.00036438,2]
[358952518,1745583100039,-979.33,0.00036438,2]
[358952519,1745583100050,-1091.92,0.00036438,2]
[358952520,1745583100061,-661.52,0.00036438,2]
[358952521,1745583100071,-598.89629743,0.00036438,2]
[358952522,1745583100082,-500.0,0.00036438,2]
[358952523,1745583100093,-500.0,0.00036438,2]
[358952524,1745583100102,-1529.99,0.00036438,2]
[358952525,1745583100112,-500.0,0.00036438,2]
[358952526,1745583100128,-1045.52,0.00036438,2]
[358952527,1745583100139,-1169.39,0.00036438,2]
[358952528,1745583100150,-500.0,0.00036438,2]
[358952529,1745583100160,-1137.26,0.00036438,2]
[358952530,1745583100170,-500.0,0.00036438,2]
[358952531,1745583100181,-1244.94,0.00036438,2]
[358952532,1745583100191,-500.0,0.00036438,2]
[358952533,1745583100203,-500.0,0.00036438,2]
[358952534,1745583100215,-500.0,0.00036438,2]
[358952535,1745583100225,-629.14618786,0.00036438,2]
[358952536,1745583100236,-667.45,0.00036438,2]
[358952537,1745583100246,-953.11,0.00036438,2]
[358952538,1745583100257,-1098.22,0.00036438,2]
[358952539,1745583100266,-1003.84,0.00036438,2]
[358952540,1745583100276,-500.0,0.00036438,2]
[358952541,1745583100287,-500.0,0.00036438,2]
[358952542,1745583100297,-500.0,0.00036438,2]
[358952543,1745583100308,-500.0,0.00036438,2]
[358952544,1745583100319,-500.0,0.00036438,2]
[358952545,1745583100329,-500.0,0.00036438,2]
[358952546,1745583100340,-1190.38,0.00036438,2]
[358952547,1745583100350,-500.0,0.00036438,2]
[358952548,1745583100361,-943.43,0.00036438,2]
[358952549,1745583100371,-500.0,0.00036438,2]
[358952550,1745583100382,-500.0,0.00036438,2]
[358952551,1745583100392,-500.0,0.00036438,2]
[358952552,1745583100402,-500.0,0.00036438,2]
[358952553,1745583100419,-500.0,0.00036438,2]
[358952554,1745583100430,-500.0,0.00036438,2]
[358952555,1745583100441,-500.0,0.00036438,2]
[358952556,1745583100451,-500.0,0.00036438,2]
[358952557,1745583100462,-1103.09,0.00036438,2]
[358952558,1745583100473,-787.17,0.00036438,2]
[358952559,1745583100485,-596.04,0.00036438,2]
[358952560,1745583100496,-500.0,0.00036438,2]
[358952561,1745583100506,-846.92,0.00036438,2]
[358952562,1745583100517,-500.0,0.00036438,2]
[358952563,1745583100528,-500.0,0.00036438,2]
[358952564,1745583100539,-592.92,0.00036438,2]
[358952565,1745583100550,-530.22,0.00036438,2]
[358952566,1745583100560,-1187.16,0.00036438,2]
[358952567,1745583100571,-500.0,0.00036438,2]
[358952568,1745583100587,-500.0,0.00036438,2]
[358952569,1745583100597,-948.98,0.00036438,2]
[358952570,1745583100607,-563.04,0.00036438,2]
[358952571,1745583100618,-793.99,0.00036438,2]
[358952572,1745583100628,-1102.75,0.00036438,2]
[358952573,1745583100639,-500.0,0.00036438,2]
[358952574,1745583100649,-2961.2,0.00036438,2]
[358952575,1745583100659,-500.0,0.00036438,2]
[358952576,1745583100669,-1241.27,0.00036438,2]
[358952577,1745583100679,-1117.61,0.00036438,2]
[358952578,1745583100691,-500.0,0.00036438,2]
[358952579,1745583100702,-1207.25,0.00036438,2]
[358952580,1745583100712,-500.0,0.00036438,2]
[358952581,1745583100723,-500.0,0.00036438,2]
[358952582,1745583100733,-944.01,0.00036438,2]
[358952583,1745583100744,-740.34,0.00036438,2]
[358952584,1745583100755,-500.0,0.00036438,2]
[358952585,1745583100765,-508.6,0.00036438,2]
[358952586,1745583100775,-500.0,0.00036438,2]
[358952587,1745583100785,-925.93,0.00036438,2]
[358952588,1745583100803,-500.0,0.00036438,2]
[358952589,1745583100829,-500.0,0.00036438,2]
[358952590,1745583100850,-823.83,0.00036438,2]
[358952591,1745583100874,-500.0,0.00036438,2]
[358952592,1745583100894,-500.0,0.00036438,2]
[358952593,1745583100917,-766.4,0.00036438,2]
[358952594,1745583100941,-1156.82,0.00036438,2]
[358952595,1745583100964,-1036.66,0.00036438,2]
[358952596,1745583101004,-500.0,0.00036438,2]
[358952597,1745583101031,-500.0,0.00036438,2]
[358952598,1745583101068,-500.0,0.00036438,2]
[358952599,1745583101094,-500.0,0.00036438,2]
[358952600,1745583101120,-500.0,0.00036438,2]
[358952601,1745583101136,-625.02,0.00036438,2]
[358952602,1745583101162,-500.0,0.00036438,2]
[358952603,1745583101180,-1045.74,0.00036438,2]
[358952604,1745583101209,-541.62,0.00036438,2]
[358952605,1745583101234,-500.0,0.00036438,2]
[358952606,1745583101260,-500.0,0.00036438,2]
[358952607,1745583101287,-500.0,0.00036438,2]
[358952608,1745583101311,-1140.56,0.00036438,2]
[358952609,1745583101334,-1106.64,0.00036438,2]
[358952610,1745583101358,-1364.16,0.00036438,2]
[358952611,1745583101381,-1334.25,0.00036438,2]
[358952612,1745583101402,-1928.93,0.00036438,2]
[358952613,1745583101428,-1153.93,0.00036438,2]
[358952614,1745583101448,-887.17,0.00036438,2]
[358952615,1745583101468,-878.99,0.00036438,2]
[358952616,1745583101489,-550.56819906,0.00036438,2]
[358952617,1745583101509,-500.0,0.00036438,2]
[358952618,1745583101528,-500.0,0.00036438,2]
[358952619,1745583101547,-500.0,0.00036438,2]
[358952620,1745583101566,-500.0,0.00036438,2]
[358952621,1745583101585,-896.35,0.00036438,2]
[358952622,1745583101615,-1114.87,0.00036438,2]
[358952623,1745583101640,-500.0,0.00036438,2]
[358952624,1745583101664,-500.0,0.00036438,2]
[358952625,1745583101686,-556.27,0.00036438,2]
[358952626,1745583101707,-500.0,0.00036438,2]
[358952627,1745583101729,-500.0,0.00036438,2]
[358952628,1745583101750,-500.0,0.00036438,2]
[358952629,1745583101772,-500.0,0.00036438,2]
[358952630,1745583101792,-2054.24,0.00036438,2]
[358952631,1745583101812,-500.0,0.00036438,2]
[358952632,1745583101831,-378.84223966,0.00036438,2]
[358952633,1745583101850,-500.0,0.00036438,2]
[358952634,1745583101868,-598.28,0.00036438,2]